[Event "Titled Tuesday Blitz April 4 Early 2023"]
[White "Kozin, Yuri"]
[Black "Devaev, Alexander"]
[WhiteFideId "4129920"]
[BlackFideId "4169395"]
[WhiteElo "2600"]
[BlackElo "2204"]
[Result "0-1"]
[Round "03"]
[TimeControl "180+2"]
[Date "2023.04.04"]
[WhiteClock "0:00:05"]
[BlackClock "0:00:39"]

1. e4 {[%clk 0:03:00]}  c6 {[%clk 0:02:58]} 2. d4 {[%clk 0:03:00]}  d5 {[%clk 0:02:59]} 3. exd5 {[%clk 0:03:01]}  cxd5 {[%clk 0:03:00]} 4. c4 {[%clk 0:03:02]}  Nf6 {[%clk 0:02:59]} 5. Nc3 {[%clk 0:03:02]}  e6 {[%clk 0:03:00]} 6. Nf3 {[%clk 0:03:02]}  Bb4 {[%clk 0:03:00]} 7. cxd5 {[%clk 0:03:03]}  Nxd5 {[%clk 0:03:00]} 8. Bd2 {[%clk 0:03:03]}  Nc6 {[%clk 0:03:01]} 9. Bd3 {[%clk 0:03:04]}  O-O {[%clk 0:03:02]} 10. O-O {[%clk 0:03:04]}  Be7 {[%clk 0:03:02]} 11. a3 {[%clk 0:03:00]}  Bf6 {[%clk 0:03:02]} 12. Qc2 {[%clk 0:02:39]}  h6 {[%clk 0:02:57]} 13. Ne4 {[%clk 0:02:24]}  Nxd4 {[%clk 0:02:43]} 14. Nxf6+ {[%clk 0:02:22]}  Qxf6 {[%clk 0:02:44]} 15. Nxd4 {[%clk 0:02:21]}  Qxd4 {[%clk 0:02:44]} 16. Rad1 {[%clk 0:02:19]}  Qf6 {[%clk 0:02:33]} 17. Qc4 {[%clk 0:01:38]}  Bd7 {[%clk 0:02:27]} 18. Qe4 {[%clk 0:01:37]}  Qf5 {[%clk 0:02:15]} 19. Qd4 {[%clk 0:01:12]}  Qf6 {[%clk 0:02:06]} 20. Qe4 {[%clk 0:01:10]}  Qf5 {[%clk 0:02:07]} 21. Qd4 {[%clk 0:00:59]}  Qh5 {[%clk 0:02:07]} 22. Qe4 {[%clk 0:00:53]}  f5 {[%clk 0:02:06]} 23. Qe5 {[%clk 0:00:50]}  Rae8 {[%clk 0:02:01]} 24. Bc4 {[%clk 0:00:47]}  Bc6 {[%clk 0:02:01]} 25. b4 {[%clk 0:00:47]}  a6 {[%clk 0:02:00]} 26. Ra1 {[%clk 0:00:39]}  Qh4 {[%clk 0:01:48]} 27. Rfc1 {[%clk 0:00:26]}  Qf6 {[%clk 0:01:46]} 28. Qxf6 {[%clk 0:00:23]}  Nxf6 {[%clk 0:01:45]} 29. a4 {[%clk 0:00:24]}  Bd5 {[%clk 0:01:44]} 30. Be2 {[%clk 0:00:23]}  Rc8 {[%clk 0:01:43]} 31. b5 {[%clk 0:00:23]}  axb5 {[%clk 0:01:42]} 32. axb5 {[%clk 0:00:24]}  Ne4 {[%clk 0:01:39]} 33. Be1 {[%clk 0:00:22]}  Kf7 {[%clk 0:01:36]} 34. f3 {[%clk 0:00:22]}  Nd6 {[%clk 0:01:28]} 35. Bb4 {[%clk 0:00:22]}  Rxc1+ {[%clk 0:01:29]} 36. Rxc1 {[%clk 0:00:22]}  Rc8 {[%clk 0:01:29]} 37. Rd1 {[%clk 0:00:20]}  Nc4 {[%clk 0:01:28]} 38. Be1 {[%clk 0:00:18]}  Ne3 {[%clk 0:01:25]} 39. Rb1 {[%clk 0:00:18]}  Bc4 {[%clk 0:01:21]} 40. Kf2 {[%clk 0:00:17]}  Bxe2 {[%clk 0:01:20]} 41. Kxe3 {[%clk 0:00:17]}  Bc4 {[%clk 0:01:12]} 42. Rc1 {[%clk 0:00:15]}  e5 {[%clk 0:01:05]} 43. Bb4 {[%clk 0:00:14]}  Ke6 {[%clk 0:01:02]} 44. h4 {[%clk 0:00:12]}  g5 {[%clk 0:01:02]} 45. hxg5 {[%clk 0:00:11]}  hxg5 {[%clk 0:01:03]} 46. g3 {[%clk 0:00:12]}  f4+ {[%clk 0:01:03]} 47. Kf2 {[%clk 0:00:11]}  Kd5 {[%clk 0:00:58]} 48. Rd1+ {[%clk 0:00:10]}  Ke6 {[%clk 0:00:58]} 49. Rd6+ {[%clk 0:00:10]}  Kf7 {[%clk 0:00:59]} 50. Rb6 {[%clk 0:00:10]}  Bd5 {[%clk 0:00:56]} 51. gxf4 {[%clk 0:00:10]}  gxf4 {[%clk 0:00:53]} 52. Bd6 {[%clk 0:00:09]}  Rc2+ {[%clk 0:00:53]} 53. Ke1 {[%clk 0:00:10]}  Ke6 {[%clk 0:00:53]} 54. Bb8+ {[%clk 0:00:09]}  Kf5 {[%clk 0:00:52]} 55. Rd6 {[%clk 0:00:08]}  Bxf3 {[%clk 0:00:51]} 56. Rd8 {[%clk 0:00:08]}  Ke4 {[%clk 0:00:49]} 57. Re8 {[%clk 0:00:08]}  Rc5 {[%clk 0:00:49]} 58. b6 {[%clk 0:00:07]}  Rb5 {[%clk 0:00:50]} 59. Bc7 {[%clk 0:00:07]}  Rb1+ {[%clk 0:00:47]} 60. Kd2 {[%clk 0:00:07]}  Rb5 {[%clk 0:00:45]} 61. Kc3 {[%clk 0:00:08]}  Bg4 {[%clk 0:00:40]} 62. Kc4 {[%clk 0:00:08]}  Rb1 {[%clk 0:00:40]} 63. Rb8 {[%clk 0:00:07]}  Be2+ {[%clk 0:00:38]} 64. Kc5 {[%clk 0:00:07]}  Ba6 {[%clk 0:00:38]} 65. Re8 {[%clk 0:00:08]}  Rb5+ {[%clk 0:00:39]} 66. Kd6 {[%clk 0:00:08]}  f3 {[%clk 0:00:39]} 67. Rf8 {[%clk 0:00:07]}  Ke3 {[%clk 0:00:38]} 68. Ke6 {[%clk 0:00:07]}  e4 {[%clk 0:00:38]} 69. Bf4+ {[%clk 0:00:07]}  Ke2 {[%clk 0:00:39]} 70. Bc7 {[%clk 0:00:06]}  e3 {[%clk 0:00:39]} 71. Kd6 {[%clk 0:00:05]}  f2 {[%clk 0:00:39]} 0-1


[Site "https://www.chess.com"]

[Event "Titled Tuesday Blitz April 4 Early 2023"]
[White "Ambartsumova, Karina"]
[Black "Hajiyev, Kanan"]
[WhiteFideId "4166299"]
[BlackFideId "13404148"]
[WhiteElo "2240"]
[BlackElo "2103"]
[Result "1-0"]
[Round "03"]
[TimeControl "180+2"]
[Date "2023.04.04"]
[WhiteClock "0:00:24"]
[BlackClock "0:00:12"]

1. e4 {[%clk 0:02:55]}  c6 {[%clk 0:02:59]} 2. Ne2 {[%clk 0:02:43]}  d5 {[%clk 0:03:00]} 3. e5 {[%clk 0:02:43]}  c5 {[%clk 0:03:00]} 4. d4 {[%clk 0:02:42]}  Nc6 {[%clk 0:03:00]} 5. dxc5 {[%clk 0:02:39]}  Bg4 {[%clk 0:02:58]} 6. c3 {[%clk 0:02:37]}  e6 {[%clk 0:02:56]} 7. b4 {[%clk 0:02:33]}  Bxe2 {[%clk 0:02:32]} 8. Bxe2 {[%clk 0:02:31]}  Nxe5 {[%clk 0:02:32]} 9. O-O {[%clk 0:01:55]}  Nf6 {[%clk 0:02:32]} 10. Bf4 {[%clk 0:01:53]}  Nc6 {[%clk 0:01:42]} 11. Nd2 {[%clk 0:01:45]}  Be7 {[%clk 0:01:40]} 12. Nb3 {[%clk 0:01:41]}  O-O {[%clk 0:01:39]} 13. Bb5 {[%clk 0:01:32]}  Ne4 {[%clk 0:01:26]} 14. Qf3 {[%clk 0:01:24]}  Bf6 {[%clk 0:01:18]} 15. Rac1 {[%clk 0:01:19]}  e5 {[%clk 0:01:07]} 16. Be3 {[%clk 0:01:05]}  a6 {[%clk 0:00:46]} 17. Ba4 {[%clk 0:00:45]}  Qe7 {[%clk 0:00:35]} 18. Rfd1 {[%clk 0:00:44]}  Rad8 {[%clk 0:00:35]} 19. a3 {[%clk 0:00:39]}  g6 {[%clk 0:00:29]} 20. c4 {[%clk 0:00:36]}  dxc4 {[%clk 0:00:25]} 21. Qxe4 {[%clk 0:00:36]}  cxb3 {[%clk 0:00:25]} 22. Bxb3 {[%clk 0:00:36]}  Nd4 {[%clk 0:00:19]} 23. Bc4 {[%clk 0:00:35]}  Bg7 {[%clk 0:00:15]} 24. Bxd4 {[%clk 0:00:28]}  Bh6 {[%clk 0:00:12]} 25. Be3 {[%clk 0:00:27]}  Bg7 {[%clk 0:00:11]} 26. Bd5 {[%clk 0:00:25]}  Rd7 {[%clk 0:00:10]} 27. c6 {[%clk 0:00:23]}  bxc6 {[%clk 0:00:11]} 28. Bxc6 {[%clk 0:00:24]}  Rc7 {[%clk 0:00:12]} 29. Bc5 {[%clk 0:00:24]} 1-0


[Site "https://www.chess.com"]

[Event "Titled Tuesday Blitz April 4 Early 2023"]
[White "Gontcharov, Vladislav"]
[Black "Mayaud, Raphael"]
[WhiteFideId "4123492"]
[BlackFideId "627151"]
[WhiteElo "2420"]
[BlackElo "2191"]
[Result "1-0"]
[Round "03"]
[TimeControl "180+2"]
[Date "2023.04.04"]
[WhiteClock "0:01:31"]
[BlackClock "0:00:11"]

1. d4 {[%clk 0:03:00]}  Nf6 {[%clk 0:02:56]} 2. c4 {[%clk 0:03:00]}  c5 {[%clk 0:02:57]} 3. d5 {[%clk 0:03:00]}  b5 {[%clk 0:02:56]} 4. f3 {[%clk 0:02:57]}  e6 {[%clk 0:02:53]} 5. e4 {[%clk 0:02:55]}  bxc4 {[%clk 0:02:49]} 6. Nc3 {[%clk 0:02:52]}  exd5 {[%clk 0:01:32]} 7. Nxd5 {[%clk 0:02:48]}  Nxd5 {[%clk 0:01:15]} 8. Qxd5 {[%clk 0:02:48]}  Nc6 {[%clk 0:01:15]} 9. Bxc4 {[%clk 0:02:47]}  Qf6 {[%clk 0:01:12]} 10. Ne2 {[%clk 0:02:35]}  Be7 {[%clk 0:01:06]} 11. O-O {[%clk 0:02:32]}  O-O {[%clk 0:01:06]} 12. Be3 {[%clk 0:02:30]}  Bb7 {[%clk 0:00:36]} 13. Qxd7 {[%clk 0:02:13]}  Rab8 {[%clk 0:00:28]} 14. Qd2 {[%clk 0:02:04]}  Rfd8 {[%clk 0:00:24]} 15. Qc3 {[%clk 0:02:03]}  Nd4 {[%clk 0:00:23]} 16. Bxd4 {[%clk 0:01:59]}  cxd4 {[%clk 0:00:22]} 17. Qd3 {[%clk 0:01:59]}  Bc6 {[%clk 0:00:20]} 18. b3 {[%clk 0:01:57]}  Bc5 {[%clk 0:00:19]} 19. Rac1 {[%clk 0:01:54]}  Qe7 {[%clk 0:00:19]} 20. Rc2 {[%clk 0:01:53]}  a5 {[%clk 0:00:19]} 21. Ng3 {[%clk 0:01:49]}  Ba8 {[%clk 0:00:17]} 22. Nf5 {[%clk 0:01:41]}  Qf6 {[%clk 0:00:17]} 23. Bxf7+ {[%clk 0:01:36]}  Qxf7 {[%clk 0:00:14]} 24. Rxc5 {[%clk 0:01:35]}  Rbc8 {[%clk 0:00:11]} 25. Rxc8 {[%clk 0:01:32]}  Rxc8 {[%clk 0:00:12]} 26. Qxd4 {[%clk 0:01:31]}  Bb7 {[%clk 0:00:11]} 1-0


[Site "https://www.chess.com"]

[Event "Titled Tuesday Blitz April 4 Early 2023"]
[White "Mazibuko, Khanya"]
[Black "Bilan, Danila"]
[WhiteFideId "14321041"]
[BlackFideId "24161918"]
[WhiteElo "1873"]
[BlackElo "2182"]
[Result "1/2-1/2"]
[Round "03"]
[TimeControl "180+2"]
[Date "2023.04.04"]
[WhiteClock "0:00:13"]
[BlackClock "0:00:05"]

1. e4 {[%clk 0:03:00]}  c6 {[%clk 0:03:00]} 2. Nc3 {[%clk 0:03:00]}  d5 {[%clk 0:03:01]} 3. Nf3 {[%clk 0:03:01]}  Bg4 {[%clk 0:02:59]} 4. h3 {[%clk 0:03:00]}  Bxf3 {[%clk 0:02:58]} 5. Qxf3 {[%clk 0:03:01]}  e6 {[%clk 0:02:56]} 6. Be2 {[%clk 0:02:59]}  Nd7 {[%clk 0:02:53]} 7. d4 {[%clk 0:02:58]}  dxe4 {[%clk 0:02:52]} 8. Nxe4 {[%clk 0:02:57]}  Ngf6 {[%clk 0:02:51]} 9. c3 {[%clk 0:02:58]}  Be7 {[%clk 0:02:48]} 10. Ng3 {[%clk 0:02:46]}  Qc7 {[%clk 0:02:41]} 11. O-O {[%clk 0:02:44]}  O-O {[%clk 0:02:39]} 12. Re1 {[%clk 0:02:41]}  c5 {[%clk 0:02:34]} 13. Be3 {[%clk 0:02:34]}  Rac8 {[%clk 0:02:28]} 14. Rad1 {[%clk 0:02:33]}  Nd5 {[%clk 0:02:21]} 15. Bc1 {[%clk 0:02:31]}  c4 {[%clk 0:01:50]} 16. Nh5 {[%clk 0:02:16]}  N7f6 {[%clk 0:01:39]} 17. Nf4 {[%clk 0:02:15]}  Rfd8 {[%clk 0:01:32]} 18. Bf1 {[%clk 0:02:10]}  b5 {[%clk 0:01:30]} 19. g3 {[%clk 0:01:54]}  Bd6 {[%clk 0:01:20]} 20. Nxd5 {[%clk 0:01:48]}  Nxd5 {[%clk 0:01:20]} 21. h4 {[%clk 0:01:42]}  b4 {[%clk 0:01:11]} 22. h5 {[%clk 0:01:40]}  bxc3 {[%clk 0:01:08]} 23. bxc3 {[%clk 0:01:41]}  Qa5 {[%clk 0:00:39]} 24. Bd2 {[%clk 0:01:40]}  Qxa2 {[%clk 0:00:32]} 25. h6 {[%clk 0:01:40]}  g6 {[%clk 0:00:30]} 26. Bg5 {[%clk 0:01:35]}  Re8 {[%clk 0:00:22]} 27. Ra1 {[%clk 0:01:35]}  Qc2 {[%clk 0:00:17]} 28. Rxa7 {[%clk 0:01:35]}  Qf5 {[%clk 0:00:17]} 29. Qxf5 {[%clk 0:01:25]}  gxf5 {[%clk 0:00:16]} 30. Bd2 {[%clk 0:01:24]}  f4 {[%clk 0:00:13]} 31. g4 {[%clk 0:01:19]}  Bf8 {[%clk 0:00:14]} 32. g5 {[%clk 0:01:19]}  Be7 {[%clk 0:00:14]} 33. Re5 {[%clk 0:00:59]}  Bd6 {[%clk 0:00:10]} 34. Re1 {[%clk 0:00:58]}  Re7 {[%clk 0:00:10]} 35. Ra4 {[%clk 0:00:54]}  Rd7 {[%clk 0:00:08]} 36. Rxc4 {[%clk 0:00:51]}  Rxc4 {[%clk 0:00:04]} 37. Bxc4 {[%clk 0:00:52]}  Be7 {[%clk 0:00:05]} 38. Bxd5 {[%clk 0:00:50]}  Rxd5 {[%clk 0:00:06]} 39. Bxf4 {[%clk 0:00:51]}  Bxg5 {[%clk 0:00:06]} 40. Re4 {[%clk 0:00:40]}  Bxf4 {[%clk 0:00:05]} 41. Rxf4 {[%clk 0:00:40]}  Rh5 {[%clk 0:00:05]} 42. Rf6 {[%clk 0:00:36]}  Kf8 {[%clk 0:00:05]} 43. Kg2 {[%clk 0:00:24]}  Ke7 {[%clk 0:00:05]} 44. Rf3 {[%clk 0:00:23]}  Rxh6 {[%clk 0:00:05]} 45. c4 {[%clk 0:00:23]}  Rh4 {[%clk 0:00:05]} 46. Rd3 {[%clk 0:00:24]}  Rg4+ {[%clk 0:00:05]} 47. Kf3 {[%clk 0:00:24]}  h5 {[%clk 0:00:05]} 48. Ke3 {[%clk 0:00:22]}  h4 {[%clk 0:00:04]} 49. Rd1 {[%clk 0:00:23]}  f5 {[%clk 0:00:03]} 50. c5 {[%clk 0:00:21]}  Kd7 {[%clk 0:00:03]} 51. Ra1 {[%clk 0:00:20]}  Kc6 {[%clk 0:00:04]} 52. Ra6+ {[%clk 0:00:20]}  Kd7 {[%clk 0:00:04]} 53. Ra7+ {[%clk 0:00:16]}  Kc6 {[%clk 0:00:04]} 54. Re7 {[%clk 0:00:14]}  Re4+ {[%clk 0:00:04]} 55. Kd3 {[%clk 0:00:14]}  Kd5 {[%clk 0:00:02]} 56. Rd7+ {[%clk 0:00:14]}  Kc6 {[%clk 0:00:02]} 57. Rd6+ {[%clk 0:00:13]}  Kc7 {[%clk 0:00:03]} 58. Ra6 {[%clk 0:00:13]}  h3 {[%clk 0:00:03]} 59. Ra7+ {[%clk 0:00:13]}  Kc6 {[%clk 0:00:03]} 60. Rh7 {[%clk 0:00:14]}  Rf4 {[%clk 0:00:04]} 61. Ke3 {[%clk 0:00:12]}  Re4+ {[%clk 0:00:04]} 62. Kd3 {[%clk 0:00:13]}  Rf4 {[%clk 0:00:05]} 63. Ke3 {[%clk 0:00:13]}  Re4+ {[%clk 0:00:05]} 64. Kd3 {[%clk 0:00:13]} 1/2-1/2


[Site "https://www.chess.com"]

[Event "Titled Tuesday Blitz April 4 Early 2023"]
[White "Martic, Ivan"]
[Black "Rizzo, Tobias"]
[WhiteFideId "929301"]
[BlackFideId "30942691"]
[WhiteElo "2360"]
[BlackElo "2417"]
[Result "1-0"]
[Round "03"]
[TimeControl "180+2"]
[Date "2023.04.04"]
[WhiteClock "0:00:17"]
[BlackClock "0:00:04"]

1. d4 {[%clk 0:02:54]}  Nf6 {[%clk 0:02:59]} 2. Bg5 {[%clk 0:02:52]}  Ne4 {[%clk 0:02:51]} 3. Bf4 {[%clk 0:02:52]}  c5 {[%clk 0:02:51]} 4. f3 {[%clk 0:02:50]}  Nf6 {[%clk 0:02:50]} 5. d5 {[%clk 0:02:48]}  d6 {[%clk 0:02:43]} 6. e4 {[%clk 0:02:45]}  e5 {[%clk 0:02:39]} 7. Be3 {[%clk 0:02:41]}  a6 {[%clk 0:02:33]} 8. a4 {[%clk 0:02:40]}  Be7 {[%clk 0:02:30]} 9. Nc3 {[%clk 0:02:40]}  b6 {[%clk 0:02:27]} 10. Qd2 {[%clk 0:02:37]}  Nbd7 {[%clk 0:02:26]} 11. Nh3 {[%clk 0:02:37]}  Nf8 {[%clk 0:02:26]} 12. Nf2 {[%clk 0:02:37]}  Ng6 {[%clk 0:02:26]} 13. g3 {[%clk 0:02:36]}  Rb8 {[%clk 0:02:19]} 14. h4 {[%clk 0:02:35]}  h5 {[%clk 0:02:19]} 15. Bh3 {[%clk 0:02:24]}  b5 {[%clk 0:02:18]} 16. axb5 {[%clk 0:02:22]}  axb5 {[%clk 0:02:19]} 17. Bxc8 {[%clk 0:02:21]}  Qxc8 {[%clk 0:02:20]} 18. b4 {[%clk 0:02:07]}  O-O {[%clk 0:02:01]} 19. O-O {[%clk 0:02:00]}  Nd7 {[%clk 0:01:54]} 20. Rfb1 {[%clk 0:01:57]}  Nb6 {[%clk 0:01:44]} 21. bxc5 {[%clk 0:01:53]}  Nc4 {[%clk 0:01:42]} 22. Qe2 {[%clk 0:01:53]}  Nxe3 {[%clk 0:01:26]} 23. Qxe3 {[%clk 0:01:54]}  b4 {[%clk 0:01:26]} 24. Na4 {[%clk 0:01:34]}  dxc5 {[%clk 0:01:26]} 25. Kg2 {[%clk 0:01:28]}  Bd6 {[%clk 0:01:23]} 26. c4 {[%clk 0:01:20]}  Qc7 {[%clk 0:01:17]} 27. Nd3 {[%clk 0:01:16]}  Rfc8 {[%clk 0:01:11]} 28. Nab2 {[%clk 0:01:14]}  Ra8 {[%clk 0:01:09]} 29. Qg5 {[%clk 0:01:08]}  Ra3 {[%clk 0:00:57]} 30. Rd1 {[%clk 0:00:55]}  Rca8 {[%clk 0:00:54]} 31. Rab1 {[%clk 0:00:55]}  Rc3 {[%clk 0:00:45]} 32. Qxh5 {[%clk 0:00:53]}  Ra2 {[%clk 0:00:27]} 33. Kh3 {[%clk 0:00:52]}  Rc2 {[%clk 0:00:19]} 34. Qg4 {[%clk 0:00:47]}  Qb7 {[%clk 0:00:18]} 35. h5 {[%clk 0:00:46]}  Nf8 {[%clk 0:00:17]} 36. h6 {[%clk 0:00:39]}  g6 {[%clk 0:00:17]} 37. Qg5 {[%clk 0:00:37]}  Qd7+ {[%clk 0:00:11]} 38. Qg4 {[%clk 0:00:33]}  Qe7 {[%clk 0:00:10]} 39. Rh1 {[%clk 0:00:26]}  Nh7 {[%clk 0:00:08]} 40. Qc8+ {[%clk 0:00:21]}  Qf8 {[%clk 0:00:07]} 41. Qxf8+ {[%clk 0:00:20]}  Kxf8 {[%clk 0:00:08]} 42. f4 {[%clk 0:00:19]}  f6 {[%clk 0:00:08]} 43. fxe5 {[%clk 0:00:19]}  Ng5+ {[%clk 0:00:08]} 44. Kg4 {[%clk 0:00:18]}  Bxe5 {[%clk 0:00:05]} 45. Nxe5 {[%clk 0:00:18]}  fxe5 {[%clk 0:00:04]} 46. Kxg5 {[%clk 0:00:17]}  Rcxb2 {[%clk 0:00:02]} 47. Rxb2 {[%clk 0:00:18]}  Rxb2 {[%clk 0:00:03]} 48. h7 {[%clk 0:00:18]}  Rg2 {[%clk 0:00:02]} 49. h8=Q+ {[%clk 0:00:18]}  Ke7 {[%clk 0:00:03]} 50. Rh7+ {[%clk 0:00:17]}  Kd6 {[%clk 0:00:04]} 51. Qf6# {[%clk 0:00:17]} 1-0


[Site "https://www.chess.com"]

[Event "Titled Tuesday Blitz April 4 Early 2023"]
[White "Adla, Diego"]
[Black "Rios Escobar, Adan"]
[WhiteFideId "100072"]
[BlackFideId "3403645"]
[WhiteElo "2377"]
[BlackElo "2415"]
[Result "1-0"]
[Round "03"]
[TimeControl "180+2"]
[Date "2023.04.04"]
[WhiteClock "0:00:32"]
[BlackClock "0:00:21"]

1. e4 {[%clk 0:02:58]}  c5 {[%clk 0:02:57]} 2. Nf3 {[%clk 0:02:57]}  d6 {[%clk 0:02:56]} 3. d4 {[%clk 0:02:56]}  cxd4 {[%clk 0:02:55]} 4. Nxd4 {[%clk 0:02:55]}  Nf6 {[%clk 0:02:56]} 5. Nc3 {[%clk 0:02:55]}  a6 {[%clk 0:02:55]} 6. Bc4 {[%clk 0:02:54]}  e6 {[%clk 0:02:51]} 7. a4 {[%clk 0:02:53]}  Be7 {[%clk 0:02:50]} 8. O-O {[%clk 0:02:51]}  O-O {[%clk 0:02:49]} 9. Be3 {[%clk 0:02:33]}  Nxe4 {[%clk 0:02:44]} 10. Nxe4 {[%clk 0:02:30]}  d5 {[%clk 0:02:44]} 11. Bd3 {[%clk 0:02:23]}  dxe4 {[%clk 0:02:42]} 12. Bxe4 {[%clk 0:02:23]}  Nd7 {[%clk 0:02:35]} 13. a5 {[%clk 0:02:18]}  Nf6 {[%clk 0:02:35]} 14. Bf3 {[%clk 0:02:15]}  e5 {[%clk 0:02:31]} 15. Nb3 {[%clk 0:02:13]}  e4 {[%clk 0:02:25]} 16. Be2 {[%clk 0:02:13]}  Nd5 {[%clk 0:02:09]} 17. Bc4 {[%clk 0:01:59]}  Nxe3 {[%clk 0:02:06]} 18. Qxd8 {[%clk 0:01:58]}  Bxd8 {[%clk 0:01:59]} 19. fxe3 {[%clk 0:01:59]}  Bg5 {[%clk 0:01:59]} 20. Rae1 {[%clk 0:01:51]}  g6 {[%clk 0:01:43]} 21. Nc5 {[%clk 0:01:49]}  Bf5 {[%clk 0:01:23]} 22. g4 {[%clk 0:01:42]}  Bxg4 {[%clk 0:01:17]} 23. Nxe4 {[%clk 0:01:42]}  Bh4 {[%clk 0:01:10]} 24. Nf6+ {[%clk 0:01:38]}  Bxf6 {[%clk 0:01:06]} 25. Rxf6 {[%clk 0:01:39]}  Kg7 {[%clk 0:01:00]} 26. Ref1 {[%clk 0:01:36]}  Bf5 {[%clk 0:01:01]} 27. Rb6 {[%clk 0:01:32]}  Rac8 {[%clk 0:00:52]} 28. b3 {[%clk 0:01:25]}  Rc7 {[%clk 0:00:50]} 29. Rf2 {[%clk 0:01:25]}  Re8 {[%clk 0:00:47]} 30. Re2 {[%clk 0:01:18]}  Rce7 {[%clk 0:00:44]} 31. Kf2 {[%clk 0:01:17]}  Be4 {[%clk 0:00:37]} 32. Bd3 {[%clk 0:01:09]}  Bc6 {[%clk 0:00:33]} 33. Bxa6 {[%clk 0:01:05]}  f5 {[%clk 0:00:27]} 34. Bd3 {[%clk 0:01:03]}  f4 {[%clk 0:00:26]} 35. exf4 {[%clk 0:01:00]}  Rxe2+ {[%clk 0:00:17]} 36. Bxe2 {[%clk 0:01:00]}  Rf8 {[%clk 0:00:16]} 37. Kg3 {[%clk 0:00:58]}  Re8 {[%clk 0:00:17]} 38. Bd1 {[%clk 0:00:50]}  Re1 {[%clk 0:00:13]} 39. a6 {[%clk 0:00:45]}  Rxd1 {[%clk 0:00:09]} 40. axb7 {[%clk 0:00:45]}  Bxb7 {[%clk 0:00:08]} 41. Rxb7+ {[%clk 0:00:45]}  Kh6 {[%clk 0:00:07]} 42. Rc7 {[%clk 0:00:44]}  Rg1+ {[%clk 0:00:06]} 43. Kf2 {[%clk 0:00:44]}  Rh1 {[%clk 0:00:06]} 44. b4 {[%clk 0:00:43]}  Rxh2+ {[%clk 0:00:06]} 45. Ke3 {[%clk 0:00:43]}  Rh1 {[%clk 0:00:03]} 46. b5 {[%clk 0:00:42]}  Rb1 {[%clk 0:00:03]} 47. c4 {[%clk 0:00:42]}  Rb4 {[%clk 0:00:02]} 48. Kd4 {[%clk 0:00:41]}  Kh5 {[%clk 0:00:02]} 49. Rxh7+ {[%clk 0:00:40]}  Kg4 {[%clk 0:00:02]} 50. Kc5 {[%clk 0:00:40]}  Rb1 {[%clk 0:00:01]} 51. Rf7 {[%clk 0:00:40]}  Kh5 {[%clk 0:00:01]} 52. b6 {[%clk 0:00:40]}  g5 {[%clk 0:00:02]} 53. fxg5 {[%clk 0:00:39]}  Kg6 {[%clk 0:00:03]} 54. Rc7 {[%clk 0:00:39]}  Kxg5 {[%clk 0:00:03]} 55. Kc6 {[%clk 0:00:39]}  Kf6 {[%clk 0:00:04]} 56. c5 {[%clk 0:00:39]}  Ke6 {[%clk 0:00:04]} 57. Rh7 {[%clk 0:00:38]}  Rb2 {[%clk 0:00:04]} 58. Rh1 {[%clk 0:00:38]}  Ke7 {[%clk 0:00:04]} 59. Rd1 {[%clk 0:00:38]}  Ke8 {[%clk 0:00:04]} 60. Kc7 {[%clk 0:00:38]}  Rb5 {[%clk 0:00:02]} 61. c6 {[%clk 0:00:38]}  Rb2 {[%clk 0:00:02]} 62. b7 {[%clk 0:00:38]}  Ke7 {[%clk 0:00:02]} 63. Re1+ {[%clk 0:00:37]}  Re2 {[%clk 0:00:01]} 64. Rxe2+ {[%clk 0:00:36]}  Kf7 {[%clk 0:00:02]} 65. Kb6 {[%clk 0:00:36]}  Kf6 {[%clk 0:00:03]} 66. c7 {[%clk 0:00:36]}  Kf5 {[%clk 0:00:04]} 67. Rc2 {[%clk 0:00:36]}  Kf4 {[%clk 0:00:05]} 68. c8=R {[%clk 0:00:34]}  Kf3 {[%clk 0:00:06]} 69. b8=R {[%clk 0:00:32]}  Ke3 {[%clk 0:00:06]} 70. R8c3+ {[%clk 0:00:31]}  Kd4 {[%clk 0:00:07]} 71. Rbc8 {[%clk 0:00:31]}  Kd5 {[%clk 0:00:07]} 72. R8c4 {[%clk 0:00:31]}  Kd6 {[%clk 0:00:08]} 73. Kb5 {[%clk 0:00:32]}  Kd7 {[%clk 0:00:09]} 74. Kb4 {[%clk 0:00:32]}  Kd8 {[%clk 0:00:10]} 75. Kb3 {[%clk 0:00:33]}  Ke8 {[%clk 0:00:11]} 76. Kb2 {[%clk 0:00:33]}  Kf8 {[%clk 0:00:12]} 77. Kc1 {[%clk 0:00:34]}  Kg8 {[%clk 0:00:13]} 78. Kd1 {[%clk 0:00:34]}  Kh8 {[%clk 0:00:14]} 79. Ke1 {[%clk 0:00:35]}  Kh7 {[%clk 0:00:15]} 80. Rh4+ {[%clk 0:00:35]}  Kg6 {[%clk 0:00:15]} 81. Rh1 {[%clk 0:00:35]}  Kg5 {[%clk 0:00:16]} 82. Ra3 {[%clk 0:00:36]}  Kf5 {[%clk 0:00:16]} 83. Ra1 {[%clk 0:00:36]}  Ke5 {[%clk 0:00:17]} 84. Re2+ {[%clk 0:00:35]}  Kd5 {[%clk 0:00:18]} 85. Rh4 {[%clk 0:00:34]}  Kc5 {[%clk 0:00:18]} 86. Ra5+ {[%clk 0:00:33]}  Kb6 {[%clk 0:00:18]} 87. Rg5 {[%clk 0:00:34]}  Kc6 {[%clk 0:00:19]} 88. Rf2 {[%clk 0:00:34]}  Kd6 {[%clk 0:00:20]} 89. Rf6+ {[%clk 0:00:34]}  Ke7 {[%clk 0:00:20]} 90. Ra6 {[%clk 0:00:34]}  Ke8 {[%clk 0:00:21]} 91. Rh7 {[%clk 0:00:32]}  Kf8 {[%clk 0:00:21]} 92. Rb7 {[%clk 0:00:32]}  Ke8 {[%clk 0:00:21]} 93. Rg8# {[%clk 0:00:32]} 1-0


[Site "https://www.chess.com"]

[Event "Titled Tuesday Blitz April 4 Early 2023"]
[White "Hnydiuk, Aleksander"]
[Black "Krzywda, Andrzej"]
[WhiteFideId "1109057"]
[BlackFideId "1114565"]
[WhiteElo "2374"]
[BlackElo "2155"]
[Result "1-0"]
[Round "03"]
[TimeControl "180+2"]
[Date "2023.04.04"]
[WhiteClock "0:01:24"]
[BlackClock "0:00:06"]

1. Nf3 {[%clk 0:03:00]}  Nf6 {[%clk 0:02:57]} 2. c4 {[%clk 0:03:00]}  e6 {[%clk 0:02:55]} 3. g3 {[%clk 0:03:01]}  d5 {[%clk 0:02:55]} 4. Bg2 {[%clk 0:03:01]}  dxc4 {[%clk 0:02:54]} 5. Qa4+ {[%clk 0:03:00]}  Nbd7 {[%clk 0:02:54]} 6. Qxc4 {[%clk 0:02:55]}  a6 {[%clk 0:02:54]} 7. Qc2 {[%clk 0:02:55]}  c5 {[%clk 0:02:46]} 8. Nc3 {[%clk 0:02:48]}  Qc7 {[%clk 0:02:23]} 9. d4 {[%clk 0:02:44]}  cxd4 {[%clk 0:02:15]} 10. Nxd4 {[%clk 0:02:44]}  Bc5 {[%clk 0:02:08]} 11. Nb3 {[%clk 0:02:44]}  Bd6 {[%clk 0:01:59]} 12. O-O {[%clk 0:02:43]}  O-O {[%clk 0:01:59]} 13. Rd1 {[%clk 0:02:42]}  Nc5 {[%clk 0:01:53]} 14. Bg5 {[%clk 0:02:28]}  Bd7 {[%clk 0:01:42]} 15. Bxf6 {[%clk 0:02:16]}  gxf6 {[%clk 0:01:43]} 16. Rxd6 {[%clk 0:02:07]}  Nxb3 {[%clk 0:01:17]} 17. Rad1 {[%clk 0:02:06]}  Na1 {[%clk 0:00:33]} 18. Qd2 {[%clk 0:02:00]}  Bc6 {[%clk 0:00:29]} 19. Bxc6 {[%clk 0:01:58]}  bxc6 {[%clk 0:00:28]} 20. Ne4 {[%clk 0:01:53]}  Kg7 {[%clk 0:00:24]} 21. Qf4 {[%clk 0:01:47]}  Nc2 {[%clk 0:00:15]} 22. Qxf6+ {[%clk 0:01:46]}  Kg8 {[%clk 0:00:15]} 23. Qc3 {[%clk 0:01:29]}  f5 {[%clk 0:00:11]} 24. Rd7 {[%clk 0:01:26]}  fxe4 {[%clk 0:00:06]} 25. Qg7# {[%clk 0:01:24]} 1-0


[Site "https://www.chess.com"]